bitfinex-derivatives/quotes_ETHF0:USTF0_20210705
["timestamp","ask_amount","ask_price","bid_price","bid_amount"]
[1625466413203,1.0,2283.7,2281.8,16.010486]
[1625466413653,1.8637,2283.7,2281.8,16.010486]
[1625466413904,2.20527,2282.7,2282.5,2.20527]
[1625466414004,2.20527,2282.7,2282.5,5.03657]
[1625466415358,3.20527,2282.7,2282.5,5.03657]
[1625466415911,5.41054,2282.7,2282.5,5.03657]
[1625466416563,4.41054,2282.7,2282.5,5.03657]
[1625466416763,5.41054,2282.7,2282.5,5.03657]
[1625466417667,4.41054,2282.7,2282.5,5.03657]
[1625466418828,5.41054,2282.7,2282.5,5.03657]
[1625466420897,5.41054,2282.7,2282.5,2.8313]
[1625466420996,5.41054,2282.7,2282.2,2.20527]
[1625466421949,2.20527,2282.3,2282.2,2.20527]
[1625466422049,3.20527,2282.3,2282.2,2.20527]
[1625466424307,2.20527,2282.3,2282.2,2.20527]
[1625466425506,3.20527,2282.3,2282.2,2.20527]
[1625466425909,2.20527,2282.3,2282.2,2.20527]
[1625466427412,2.20527,2282.3,2282.2,4.90647]
[1625466428762,2.20527,2282.7,2282.2,4.90647]
[1625466428863,1.0,2283.2,2282.2,4.90647]
[1625466429971,2.20527,2283.1,2283.0,2.20527]
[1625466430072,3.20527,2283.1,2283.0,5.48947]
[1625466431974,5.41054,2283.1,2283.0,5.48947]
[1625466432176,5.41054,2283.1,2283.0,3.2842]
[1625466433084,4.41054,2283.1,2283.0,3.2842]
[1625466433386,4.41054,2283.1,2283.0,44.1196]
[1625466433644,4.41054,2283.1,2283.0,3.2842]
[1625466433996,5.41054,2283.1,2283.0,5.48947]
[1625466434445,5.41054,2283.1,2283.0,3.2842]
[1625466434546,8.14444,2283.1,2281.5,15.042]
[1625466435199,8.14444,2283.1,2281.6,15.818531]
[1625466435300,8.14444,2283.1,2281.6,17.958431]
[1625466435800,8.14444,2283.1,2282.0,51.6402]
[1625466436000,5.93917,2283.1,2282.7,2.20527]
[1625466436101,3.20527,2283.1,2282.7,2.20527]
[1625466436203,2.20527,2283.1,2282.7,2.20527]
[1625466436502,1.0,2283.0,2282.7,2.20527]
[1625466437002,2.20527,2283.1,2282.7,2.20527]
[1625466437658,1.0,2283.0,2282.7,2.20527]
[1625466437954,2.20527,2283.1,2282.7,2.20527]
[1625466438054,4.41054,2283.1,2282.7,2.20527]
[1625466438405,5.41054,2283.1,2282.7,2.20527]
[1625466439408,5.41054,2283.1,2282.0,51.6402]
[1625466439508,8.08824,2283.1,2281.8,0.05]
[1625466439808,13.08824,2283.1,2281.8,0.05]
[1625466440008,47.1821,2282.8,2280.6,46.39118948]
[1625466440114,2.20527,2282.3,2282.2,2.20527]
[1625466440215,6.62897,2282.3,2282.2,2.20527]
[1625466441062,6.62897,2282.3,2280.4,2.49610941]
[1625466441463,6.62897,2282.3,2279.7,7.37851882]
[1625466441663,6.62897,2282.3,2279.7,4.99221882]
[1625466441913,6.62897,2282.3,2280.1,0.16338178]
[1625466442065,2.20527,2281.7,2281.6,2.20527]
[1625466444177,4.41054,2281.7,2281.6,2.20527]
[1625466445379,5.41054,2281.7,2281.6,2.20527]
[1625466446630,4.41054,2281.7,2281.6,2.20527]
[1625466450607,8.59134,2281.7,2281.6,2.20527]
[1625466450705,8.59134,2281.7,2280.0,5.79137768]
[1625466450805,8.59134,2281.7,2280.0,2.54657539]
[1625466451306,8.59134,2281.7,2280.1,15.920012]
[1625466452156,2.20527,2281.1,2281.0,2.20527]
[1625466452259,3.20527,2281.1,2281.0,2.20527]
[1625466454113,3.20527,2281.1,2280.7,2.20527]
[1625466454216,5.41054,2281.1,2280.7,2.20527]
[1625466455467,1.0,2281.1,2280.7,2.20527]
[1625466455568,54.1214,2282.3,2280.7,2.20527]
[1625466455673,1.0,2282.2,2280.7,4.57537]
[1625466456169,2.20527,2281.6,2281.5,2.20527]
[1625466456270,3.20527,2281.6,2281.5,2.20527]
[1625466464888,3.20527,2281.6,2280.7,2.3701]
[1625466464997,3.20527,2281.6,2279.7,15.78305033]
[1625466465447,3.20527,2281.6,2279.7,14.0335]
[1625466465648,3.20527,2281.6,2280.1,18.300671]
[1625466466249,3.20527,2281.6,2281.3,2.20527]
[1625466467307,47.52837,2281.6,2281.3,2.20527]
[1625466468211,2.20527,2281.4,2281.3,2.20527]
[1625466468310,3.20527,2281.4,2281.3,2.20527]
[1625466469360,3.20527,2281.4,2281.0,2.20527]
[1625466470163,8.20527,2281.4,2281.0,2.20527]
[1625466470262,2.20527,2281.1,2281.0,2.20527]
[1625466470363,3.20527,2281.1,2281.0,2.20527]
[1625466473019,2.20527,2281.1,2281.0,2.20527]
[1625466473221,3.20527,2281.1,2281.0,2.20527]
[1625466473772,2.20527,2281.1,2281.0,2.20527]
[1625466474273,3.20527,2281.1,2281.0,2.20527]
[1625466474473,2.20527,2281.1,2281.0,2.20527]
[1625466475273,3.20527,2281.1,2281.0,2.20527]
[1625466475374,2.20527,2281.1,2281.0,2.20527]
[1625466476578,3.20527,2281.1,2281.0,2.20527]
[1625466476878,2.20527,2281.1,2281.0,2.20527]
[1625466477383,3.20527,2281.1,2281.0,2.20527]
[1625466477528,2.20527,2281.1,2281.0,2.20527]
[1625466483161,3.20527,2281.1,2281.0,2.20527]
[1625466484068,2.20527,2281.1,2281.0,2.20527]
[1625466484165,3.20527,2281.1,2281.0,2.20527]
[1625466485769,2.20527,2281.1,2281.0,2.20527]
[1625466486319,2.20527,2281.1,2281.0,56.14627]
[1625466486821,2.20527,2281.1,2281.0,2.20527]
[1625466490328,1.80504385,2282.3,2281.0,2.20527]
[1625466490430,2.20527,2281.6,2281.3,5.48467]
[1625466490728,1.0,2281.5,2281.3,5.48467]
[1625466491280,2.20527,2281.6,2281.3,5.48467]
[1625466491982,3.20527,2281.6,2281.3,5.48467]
[1625466496446,2.20527,2281.4,2281.3,5.48467]
[1625466496647,3.20527,2281.4,2281.3,5.48467]
[1625466496746,5.35957,2281.4,2281.3,2.20527]
[1625466497262,5.35957,2281.4,2279.6,3.25793821]
[1625466497348,5.35957,2281.4,2280.0,0.05]
[1625466497998,5.35957,2281.4,2280.1,16.038513]
[1625466498499,2.20527,2280.8,2280.7,2.20527]
[1625466498599,3.1543,2281.4,2280.7,2.20527]
[1625466498699,2.1543,2281.4,2280.7,2.20527]
[1625466498799,3.1543,2281.4,2280.7,2.20527]
[1625466499549,3.1543,2281.4,2280.5,2.20527]
[1625466499701,46.9269,2281.4,2280.5,2.20527]
[1625466500553,2.20527,2281.0,2280.8,2.20527]
[1625466502374,3.20527,2281.0,2280.8,2.20527]
[1625466502471,5.41054,2281.0,2280.8,2.20527]
[1625466503123,5.41054,2281.0,2280.5,2.20527]
[1625466504276,10.41054,2281.0,2280.5,2.20527]
[1625466504577,2.20527,2280.6,2280.5,2.20527]
[1625466504673,5.91077,2280.6,2280.5,2.20527]
[1625466505175,44.33307,2280.6,2280.5,2.20527]
[1625466505375,44.33307,2280.6,2280.0,0.05]
[1625466505775,5.0,2280.5,2280.0,0.05]
[1625466505876,1.0,2280.4,2280.0,0.05]
[1625466506531,4.41054,2280.1,2280.0,0.05]
[1625466506632,5.41054,2280.1,2280.0,0.05]
[1625466506730,7.61114,2280.1,2280.0,0.05]
[1625466507632,8.48774,2280.1,2280.0,0.05]
[1625466508333,8.48774,2280.1,2278.6,13.6558]
[1625466508534,2.20527,2279.2,2279.1,2.20527]
[1625466508636,4.78757,2279.2,2279.1,2.20527]
[1625466509087,5.78757,2279.2,2279.1,2.20527]
[1625466510592,7.99284,2279.2,2279.1,2.20527]
[1625466511845,6.99284,2279.2,2279.1,2.20527]
[1625466512896,7.99284,2279.2,2279.1,2.20527]
[1625466513198,6.99284,2279.2,2279.1,2.20527]
[1625466513296,2.20527,2279.2,2279.1,2.20527]
[1625466513398,1.28841664,2280.6,2279.1,2.20527]
[1625466513497,1.28841664,2280.6,2279.1,5.27547]
[1625466513747,1.28841664,2280.6,2279.9,37.0377]
[1625466513847,1.28841664,2280.6,2279.9,40.0562]
[1625466514002,14.7698,2280.9,2279.9,40.0562]
[1625466514098,14.7698,2280.9,2279.9,3.0185]
[1625466514348,1.0,2280.8,2279.9,3.0185]
[1625466514550,4.41054,2280.0,2279.9,3.0185]
[1625466514798,5.41054,2280.0,2279.9,3.0185]
[1625466515268,4.41054,2280.0,2279.9,3.0185]
[1625466516254,5.41054,2280.0,2279.9,3.0185]
[1625466516355,5.41054,2280.0,2279.7,2.20527]
[1625466516855,4.41054,2280.0,2279.7,2.20527]
[1625466517255,4.41054,2280.0,2279.7,2.25527]
[1625466517776,14.7698,2280.9,2279.7,2.25527]
[1625466517889,14.7698,2280.9,2279.7,59.68647]
[1625466518275,14.7698,2280.9,2279.8,16.052625]
[1625466518678,2.20527,2280.6,2280.5,2.20527]
[1625466518980,3.20527,2280.6,2280.5,2.20527]
[1625466519481,2.20527,2280.6,2280.5,2.20527]
[1625466520783,3.20527,2280.6,2280.5,2.20527]
[1625466521436,3.20527,2280.6,2279.7,2.7804]
[1625466522636,3.20527,2280.6,2280.2,2.20527]
[1625466523144,2.20527,2280.6,2280.2,2.20527]
[1625466523342,2.20527,2280.6,2280.2,4.53067]
[1625466524342,3.20527,2280.6,2280.2,4.53067]
[1625466524644,2.20527,2280.3,2280.2,4.53067]
[1625466524743,3.20527,2280.3,2280.2,4.53067]
[1625466526395,3.20527,2280.3,2280.2,2.20527]
[1625466526848,4.07857,2280.3,2280.2,2.20527]
[1625466527047,3.20527,2280.3,2280.2,2.20527]
[1625466530307,4.08337,2280.3,2280.2,2.20527]
[1625466531622,4.08337,2280.3,2280.2,1.04527]
[1625466531823,4.08337,2280.3,2279.9,2.20527]
[1625466532224,9.08337,2280.3,2279.9,2.20527]
[1625466532724,2.20527,2280.0,2278.8,2.20527]
[1625466532824,1.0,2279.9,2278.8,2.20527]
[1625466534731,2.20527,2279.4,2279.2,2.20527]
[1625466534833,3.20527,2279.4,2279.2,2.20527]
[1625466535080,2.20527,2279.4,2279.2,2.20527]
[1625466535737,2.20527,2279.4,2279.0,3.4647]
[1625466535833,3.20527,2279.4,2279.0,3.4647]
[1625466535933,2.20527,2279.4,2279.0,3.4647]
[1625466536785,2.20527,2279.4,2279.2,2.20527]
[1625466536886,1.0,2279.3,2279.2,2.20527]
[1625466537692,1.0,2279.3,2279.0,3.4647]
[1625466537891,1.0,2279.3,2278.6,13.7058]
[1625466538211,1.0,2279.3,2278.6,0.05]
[1625466538760,2.20527,2278.9,2278.8,2.20527]
[1625466540776,4.41054,2278.9,2278.8,2.20527]
[1625466545640,4.41054,2278.9,2278.6,2.20527]
[1625466545641,5.41054,2278.9,2278.6,2.20527]
[1625466546142,5.41054,2278.9,2278.6,2.25527]
[1625466547644,5.41054,2278.9,2278.6,2.20527]
[1625466549701,40.7526,2278.7,2278.4,0.05]
[1625466549799,1.0,2278.6,2278.4,0.05]
[1625466550148,1.0,2278.6,2277.4,14.3645]
[1625466550848,1.0,2278.6,2277.8,2.20527]
[1625466550849,2.20527,2278.0,2277.8,2.20527]
[1625466551251,3.20527,2278.0,2277.8,2.20527]
[1625466551351,3.20527,2278.0,2277.6,2.20527]
[1625466551452,3.20527,2278.0,2277.4,14.3645]
[1625466551650,2.20527,2278.0,2277.4,14.3645]
[1625466551752,2.20527,2278.0,2277.3,0.05]
[1625466552051,3.20527,2278.0,2277.3,0.05]
[1625466552403,2.20527,2278.0,2277.3,0.05]
[1625466552856,2.20527,2278.0,2277.5,2.20527]
[1625466553659,3.20527,2278.0,2277.5,2.20527]
[1625466554868,2.20527,2277.6,2277.5,2.20527]
[1625466554967,3.20527,2277.6,2277.5,2.20527]
[1625466555069,3.20527,2277.6,2277.2,19.20527]
[1625466555169,2.20527,2277.6,2277.2,19.20527]
[1625466555370,3.20527,2277.6,2277.2,19.20527]
[1625466556032,2.20527,2277.6,2277.2,19.20527]
[1625466556832,4.41054,2277.6,2277.5,2.20527]
[1625466558194,5.41054,2277.6,2277.5,2.20527]
[1625466558295,5.41054,2277.6,2277.2,19.20527]
[1625466558847,2.20527,2277.3,2277.2,19.20527]
[1625466561455,2.20527,2277.3,2277.2,35.132852]
[1625466562406,2.20527,2277.3,2277.2,19.20527]
[1625466563911,2.20527,2277.3,2277.2,35.118787]
[1625466565522,2.20527,2277.3,2277.2,19.20527]
[1625466568544,4.89357,2277.3,2277.2,19.20527]
[1625466569051,5.89357,2277.3,2277.2,19.20527]
[1625466571607,4.89357,2277.3,2277.2,19.20527]
[1625466572011,5.89357,2277.3,2277.2,19.20527]
[1625466575615,5.89357,2277.3,2277.2,10.20527]
[1625466575966,5.0,2278.2,2277.7,0.90116]
[1625466576067,44.4607,2277.8,2277.7,0.90116]
[1625466576518,44.4607,2277.8,2277.7,5.90116]
[1625466576968,48.87124,2277.8,2277.7,6e-05]
[1625466577068,53.87124,2277.8,2277.7,2.00006]
[1625466577319,53.87124,2277.8,2277.5,2.20527]
[1625466577419,53.87124,2277.8,2277.2,2.20527]
[1625466577671,53.87124,2277.8,2277.7,1.0]
[1625466577769,53.87124,2277.8,2275.3,15.0217]
[1625466577871,14.6847,2277.7,2275.3,15.0217]
[1625466577969,19.6847,2277.7,2275.3,15.0217]
[1625466578280,33.5344,2277.7,2275.3,15.0217]
[1625466578370,33.5344,2277.7,2275.4,1.0]
[1625466578470,33.5344,2277.7,2275.4,17.022354]
[1625466578979,2.20527,2276.8,2276.5,2.20527]
[1625466579781,4.99147,2276.8,2276.5,2.20527]
[1625466579983,4.99147,2276.8,2276.5,7e-05]
[1625466580081,9.99147,2276.8,2274.4,1.26495976]
[1625466580279,9.99147,2276.8,2274.3,1.71590342]
[1625466580587,9.99147,2276.8,2274.4,1.0]
[1625466580686,44.753,2275.7,2274.4,1.0]
[1625466580786,9.99147,2276.8,2274.4,1.0]
[1625466580787,4.99147,2276.8,2274.4,1.0]
[1625466580886,4.99147,2276.8,2274.4,16.852507]
[1625466580986,2.20527,2275.3,2275.2,2.20527]
[1625466581085,1.20527,2275.3,2275.2,5.27457]
[1625466581185,7e-05,2275.3,2275.2,5.27457]
[1625466581285,1.0,2276.6,2275.3,15.86992]
[1625466581588,1.0,2276.6,2275.2,21.336872]
[1625466581690,1.0,2276.6,2275.2,5.27457]
[1625466582293,14.1703,2276.7,2275.3,15.97906]
[1625466582392,15.1703,2276.7,2275.3,15.97906]
[1625466583047,2.20527,2276.5,2276.3,2.20527]
[1625466583146,2.20527,2276.5,2276.3,5.04857]
[1625466585007,4.41054,2276.5,2276.3,5.04857]
[1625466585106,2.20527,2276.5,2276.3,5.04857]
[1625466587058,2.20527,2276.5,2276.4,2.20527]
[1625466591922,3.20527,2276.5,2276.4,2.20527]
[1625466592321,2.20527,2276.5,2276.4,2.20527]
[1625466593444,3.20527,2276.5,2276.4,2.20527]
[1625466593692,2.20527,2276.5,2276.4,2.20527]
[1625466597401,2.20527,2276.5,2276.4,18.127182]
[1625466599587,1.0,2276.9,2276.4,18.127182]
[1625466600340,28.3131,2277.7,2276.4,18.127182]
[1625466600439,1.0,2277.6,2276.4,18.127182]
[1625466600943,1.0,2277.6,2276.6,37.9104]
[1625466601145,2.20527,2277.3,2277.2,5.68217]
[1625466601243,3.20527,2277.3,2277.2,5.68217]
[1625466601543,2.20527,2277.3,2277.2,5.68217]
[1625466601845,14.6373,2278.9,2277.2,5.68217]
[1625466602047,14.5745,2279.3,2277.2,21.698159]
[1625466602447,14.5745,2279.3,2278.2,52.6425]
[1625466602547,14.5745,2279.3,2278.2,56.0392]
[1625466602649,1.0,2279.2,2278.2,56.0392]
[1625466603148,3.20527,2279.2,2279.1,2.20527]
[1625466603248,3.20527,2279.2,2279.1,5.67157]
[1625466603898,3.20527,2279.2,2279.1,3.4663]
[1625466605156,5.41054,2279.2,2279.1,3.4663]
[1625466605257,5.41054,2279.2,2278.8,2.20527]
[1625466606204,8.17104,2279.2,688.71,8.05316942]
[1625466606306,8.17104,2279.2,2275.3,53.3533]
[1625466606605,8.17104,2279.2,2276.0,5.0]
[1625466606856,8.17104,2279.2,2276.8,16.067934]
[1625466607056,8.17104,2279.2,2276.8,19.620334]
[1625466607157,3.7605,2279.2,2278.0,2.20527]
[1625466607256,2.5677,2278.6,2278.0,2.20527]
[1625466607356,1.0,2278.5,2278.0,2.20527]
[1625466608410,1.0,2278.5,2275.8,4.759]
[1625466608507,1.0,2278.5,2275.6,0.8734]
[1625466608811,1.0,2278.5,2275.8,5.0]
[1625466609108,1.0,2278.5,2276.8,18.820504]
[1625466609209,2.20527,2277.9,2277.8,2.20527]
[1625466609316,3.20527,2277.9,2277.8,2.20527]
[1625466610067,2.20527,2277.9,2277.8,2.20527]
[1625466610817,66.6838,2279.3,2277.8,2.20527]
[1625466611221,4.41054,2277.9,2277.8,2.20527]
[1625466611319,5.41054,2277.9,2277.8,2.20527]
[1625466612628,5.41054,2277.9,2276.8,2.9511]
[1625466612728,7.56814,2277.9,2275.5,2.5357288]
[1625466613170,2.20527,2277.2,2277.0,2.20527]
[1625466613269,3.20527,2277.2,2277.0,2.20527]
[1625466613824,2.20527,2277.2,2277.0,2.20527]
[1625466615376,3.20527,2277.2,2277.0,2.20527]
[1625466615987,2.20527,2277.2,2277.0,2.20527]
[1625466616488,2.20527,2277.4,2277.0,2.20527]
[1625466617192,3.20527,2277.4,2277.3,2.20527]
[1625466617595,2.20527,2277.4,2277.3,2.20527]
[1625466618196,3.20527,2277.4,2277.3,2.20527]
[1625466625765,3.20527,2277.4,2277.0,2.20527]
[1625466627325,2.20527,2277.1,2277.0,2.20527]
[1625466627423,3.20527,2277.1,2277.0,2.20527]
[1625466629290,3.20527,2277.1,2276.8,2.20527]
[1625466629291,3.20527,2277.1,2276.8,4.41054]
[1625466630241,1.0,2277.1,2276.8,4.41054]
[1625466630339,15.2687,2278.2,2276.8,4.41054]
[1625466630452,1.0,2277.5,2276.8,7.15554]
[1625466631197,14.5222,2278.3,2276.8,7.15554]
[1625466631310,2.20527,2277.8,2277.7,2.20527]
[1625466631396,2.20527,2277.8,2277.7,4.52127]
[1625466633353,4.41054,2277.8,2277.7,4.52127]
[1625466636916,5.41054,2277.8,2277.7,4.52127]
[1625466637018,8.62574,2277.8,2277.5,2.20527]
[1625466637322,39.3842,2277.6,2277.5,2.20527]
[1625466637422,40.3842,2277.6,2277.5,2.20527]
[1625466637625,39.3842,2277.6,2277.5,2.20527]
[1625466637824,40.3842,2277.6,2277.5,2.20527]
[1625466638024,40.3842,2277.6,2277.1,2.20527]
[1625466639134,40.3842,2277.6,2276.4,13.5693]
[1625466639337,4.41054,2276.5,2276.0,4.76495486]
[1625466639436,1.0,2276.4,2276.0,4.76495486]
[1625466639536,7.73634,2276.5,2276.0,4.76495486]
[1625466639645,7.73634,2276.5,2276.0,2.20527]
[1625466639939,7.73634,2276.5,2276.1,15.889342]
[1625466640237,1.0,2276.4,2276.1,15.889342]
[1625466641142,1.0,2276.4,2276.0,2.20527]
[1625466641343,1.0,2276.4,2276.3,2.20527]
[1625466641442,1.0,2276.4,2275.7,2.56287415]
[1625466641545,1.0,2276.4,2275.9,0.05]
[1625466641847,1.0,2276.4,2275.9,2.2565]
[1625466642357,1.0,2276.4,2276.0,16.038294]
[1625466642659,2.20527,2276.5,2276.0,16.038294]
[1625466643364,2.20527,2276.5,2276.4,4.41054]
[1625466643466,2.20527,2276.5,2276.4,7.73984]
[1625466643868,1.0,2277.2,2276.4,7.73984]
[1625466643967,13.5978,2277.4,2276.4,7.73984]
[1625466644167,13.5978,2277.4,2276.5,15.891]
[1625466644720,1.0,2277.3,2276.5,15.891]
[1625466644818,1.0,2277.3,2276.4,7.73984]
[1625466645369,2.20527,2277.1,2277.0,2.20527]
[1625466645470,3.20527,2277.1,2276.4,3.3293]
[1625466645573,6.56797,2277.1,2276.0,2.5588661]
[1625466645674,6.56797,2277.1,2275.9,2.6074714]
[1625466646222,6.56797,2277.1,2275.9,0.05]
[1625466646923,6.56797,2277.1,2275.7,2.55889224]
[1625466647123,6.56797,2277.1,2276.2,0.05]
[1625466647424,4.41054,2276.3,2276.2,0.05]
[1625466647873,4.41054,2276.3,2276.1,2.20527]
[1625466647977,5.41054,2276.3,2276.1,2.20527]
[1625466653542,5.41054,2276.3,2275.9,0.05]
[1625466653642,5.41054,2276.3,2274.9,2.56040059]
[1625466654848,5.41054,2276.3,2274.8,14.78]
[1625466655456,2.20527,2275.6,2275.4,2.20527]
[1625466655557,3.7283,2275.5,2275.4,2.20527]
[1625466656172,2.7283,2275.5,2275.4,2.20527]
[1625466656361,3.7283,2275.5,2275.4,2.20527]
[1625466656461,2.7283,2275.5,2275.4,2.20527]
[1625466657013,2.20527,2275.6,2275.4,2.20527]
[1625466657312,1.0,2275.5,2275.4,2.20527]
[1625466657514,3.20527,2275.5,2275.4,2.20527]
[1625466658116,2.20527,2275.5,2275.4,2.20527]
[1625466658817,3.20527,2275.5,2275.4,2.20527]
[1625466659368,5.96087,2275.5,2275.4,2.20527]
[1625466664627,5.96087,2275.5,2275.1,2.20527]
[1625466665539,2.20527,2275.2,2275.1,2.20527]
[1625466665630,3.20527,2275.2,2275.1,2.20527]
[1625466665883,2.20527,2275.2,2275.1,2.20527]
[1625466667182,3.87193647,2275.2,2275.1,2.20527]
[1625466667283,4.87193647,2275.2,2275.1,2.20527]
[1625466667681,3.87193647,2275.2,2275.1,2.20527]
[1625466668481,4.87193647,2275.2,2275.1,2.20527]
[1625466668582,3.87193647,2275.2,2275.1,2.20527]
[1625466669282,4.87193647,2275.2,2275.1,2.20527]
[1625466672389,4.87193647,2275.2,2274.9,2.20527]
[1625466673601,2.20527,2275.0,2274.6,2.20527]
[1625466673698,1.0,2274.9,2274.6,2.20527]
[1625466675659,2.20527,2274.7,2274.6,2.20527]
[1625466675749,6.55207,2274.7,2274.6,2.20527]
[1625466676807,7.44027,2274.7,2274.6,2.20527]
[1625466677409,7.44027,2274.7,2274.1,2.20527]
[1625466677609,4.41054,2274.2,2274.1,2.20527]
[1625466677710,8.44054,2274.2,2274.1,2.20527]
[1625466678920,8.44054,2274.2,2272.8,2.54715321]
[1625466679568,8.44054,2274.2,2272.9,15.902086]
[1625466679673,41.8834,2273.9,2272.9,15.902086]
[1625466679769,1.0,2273.8,2272.9,15.902086]
[1625466681670,2.20527,2273.6,2273.5,2.20527]
[1625466681773,2.20527,2273.6,2272.9,15.902086]
[1625466681972,2.20527,2273.6,2272.4,2.54615984]
[1625466682174,2.20527,2273.6,2272.3,14.9224]
[1625466682724,2.20527,2273.6,2272.4,16.087552]
[1625466683681,2.20527,2273.6,2273.3,2.20527]
[1625466684734,1.0,2273.5,2273.3,2.20527]
[1625466684840,4.2279,2273.5,2272.3,14.9224]
[1625466685485,4.2279,2273.5,2272.4,15.839005]
[1625466685686,2.20527,2273.0,2272.9,2.20527]
[1625466687742,6.23507,2273.0,2272.9,2.20527]
[1625466687902,6.23507,2273.0,2272.7,2.20527]
[1625466688085,5.23507,2273.0,2272.7,2.20527]
[1625466689661,2.20527,2272.9,2272.7,2.20527]
[1625466692373,3.20527,2272.9,2272.7,2.20527]
[1625466692873,2.20527,2272.9,2272.7,2.20527]
[1625466692975,3.20527,2272.9,2272.7,2.20527]
[1625466693777,5.89167,2272.9,2272.7,2.20527]
[1625466695087,5.89167,2272.9,2272.5,2.20527]
[1625466695681,2.20527,2272.6,2272.5,2.20527]
[1625466695782,3.20527,2272.6,2272.5,2.20527]
[1625466697293,2.20527,2272.6,2272.5,2.20527]
[1625466698697,2.20527,2272.9,2272.5,5.41977]
[1625466699750,2.20527,2272.9,2272.8,2.20527]
[1625466700151,2.20527,2272.9,2272.8,18.211449]
[1625466701118,0.8882,2274.7,2272.8,18.211449]
[1625466701718,2.20527,2273.4,2273.3,2.20527]
[1625466701821,2.20527,2273.4,2273.3,5.38187]
[1625466703329,1.0,2274.0,2273.3,5.38187]
[1625466703389,13.8621,2275.1,2273.3,5.38187]
[1625466703676,13.8621,2275.1,2273.4,15.884956]
[1625466703778,2.20527,2274.5,2274.4,2.20527]
[1625466704427,3.20527,2274.5,2274.4,2.20527]
[1625466705833,5.41054,2274.5,2274.4,2.20527]
[1625466706483,4.41054,2274.5,2274.4,2.20527]
[1625466706783,5.41054,2274.5,2274.4,2.20527]
[1625466707086,4.41054,2274.5,2274.4,2.20527]
[1625466709086,4.41054,2274.5,2274.4,18.06509]
[1625466709992,5.41054,2274.5,2274.4,18.06509]
[1625466710092,5.41054,2274.5,2274.4,2.20527]
[1625466710391,5.41054,2274.5,2273.3,3.1766]
[1625466710493,5.41054,2274.5,2272.6,18.7949]
[1625466710596,5.41054,2274.5,2272.6,13.7949]
[1625466711044,5.41054,2274.5,2272.7,16.095329]
[1625466711694,5.41054,2274.5,2272.7,21.095329]
[1625466711797,3.20527,2274.5,2274.0,2.20527]
[1625466711994,3.20527,2274.5,2274.0,5.60337]
[1625466713206,2.20527,2274.5,2274.0,5.60337]
[1625466713497,2.20527,2274.5,2274.2,47.3859]
[1625466713899,2.20527,2274.5,2274.4,2.20527]
[1625466714200,2.20527,2274.5,2274.3,15.872037]
[1625466714298,2.20527,2274.5,2274.0,5.60337]
[1625466714399,3.20527,2274.5,2274.0,5.60337]
[1625466714709,2.20527,2274.5,2274.0,5.60337]
[1625466715453,4.56407,2274.5,2274.0,5.60337]
[1625466715855,2.20527,2274.1,2274.0,5.60337]
[1625466716053,1.0,2274.4,2274.0,5.60337]
[1625466717156,1.0,2274.4,2274.0,2.20527]
[1625466717380,1.0,2274.4,2273.7,2.20527]
[1625466717857,1.0,2274.4,2274.1,2.20527]
[1625466718609,1.0,2274.4,2273.7,2.20527]
[1625466719921,4.41054,2273.8,2273.7,2.20527]
[1625466722082,1.0,2274.3,2273.7,2.20527]
[1625466722179,1.0,2274.3,2273.7,5.10277]
[1625466723932,2.20527,2273.8,2273.7,5.10277]
[1625466726993,14.4414,2275.0,2273.7,5.10277]
[1625466727595,1.0,2274.9,2273.7,5.10277]
[1625466727894,1.0,2274.9,2274.2,2.20527]
[1625466727994,2.20527,2274.4,2274.2,2.20527]
[1625466728095,1.0,2274.3,2274.2,5.67867]
[1625466730204,1.0,2274.3,2274.2,3.4734]
[1625466732006,1.0,2274.3,2274.2,5.67867]
[1625466732111,4.41054,2274.4,2274.2,5.67867]
[1625466737389,5.41054,2274.4,2274.2,5.67867]
[1625466738943,4.41054,2274.4,2274.2,5.67867]
[1625466739946,5.41054,2274.4,2274.2,5.67867]
[1625466741301,5.41054,2274.4,2273.0,2.54545202]
[1625466741402,8.93024,2274.4,2273.0,2.54545202]
[1625466741801,8.93024,2274.4,2272.6,13.7949]
[1625466742152,2.20527,2273.2,2273.1,2.20527]
[1625466744715,2.20527,2273.2,2272.6,13.7949]
[1625466745256,2.20527,2273.2,2272.2,2.55429823]
[1625466745557,2.20527,2273.2,2272.3,2.55463222]
[1625466745959,1.0,2273.1,2272.3,2.55463222]
[1625466746059,1.0,2273.1,2272.8,2.20527]
[1625466748070,2.20527,2272.9,2272.8,2.20527]
[1625466748171,3.20527,2272.9,2272.8,2.20527]
[1625466748283,2.20527,2272.9,2272.8,2.20527]
[1625466748683,2.20527,2273.2,2272.8,2.20527]
[1625466749834,1.0,2273.1,2272.8,2.20527]
[1625466750135,1.0,2273.1,2272.9,2.20527]
[1625466750437,2.20527,2273.2,2272.9,2.20527]
[1625466750836,3.20527,2273.2,2272.9,2.20527]
[1625466752089,2.20527,2273.0,2272.9,2.20527]
[1625466752188,6.15987,2273.0,2272.9,2.20527]
[1625466758951,5.15987,2273.0,2272.9,2.20527]
[1625466759800,6.15987,2273.0,2272.9,2.20527]
[1625466769721,6.15987,2273.0,2272.2,1.78994066]
[1625466770231,2.20527,2272.4,2272.2,3.99521066]